bitfinex-derivatives/quotes_ETHF0:USTF0_20250430
["timestamp","ask_amount","ask_price","bid_price","bid_amount"]
[1746009116914,2.0462839,1804.9,1804.8,1.10787]
[1746009117112,0.4211839,1804.9,1804.8,6.65357]
[1746009118506,3.18382559,1805.1,1805.0,1.10775]
[1746009118713,3.60505091,1805.1,1805.0,1.10775]
[1746009119217,3.60505091,1805.1,1805.0,4.93575]
[1746009120213,2.04632532,1805.1,1805.0,4.93575]
[1746009120417,2.04629361,1805.1,1805.0,6.54655]
[1746009120909,0.42119361,1805.1,1805.0,6.54655]
[1746009121213,0.42119361,1805.1,1805.0,7.37975]
[1746009121602,8.374,1805.3,1805.2,1.10763]
[1746009121808,9.90280522,1805.3,1805.2,1.10763]
[1746009122212,9.90280522,1805.3,1805.2,4.93563]
[1746009122513,2.09243522,1805.3,1805.2,4.93563]
[1746009122706,2.09243522,1805.3,1805.2,8.14343]
[1746009122907,0.42123522,1805.3,1805.2,8.93383]
[1746009123111,5.1621,1805.4,1805.3,1.10757]
[1746009123411,5.1621,1805.4,1805.3,2.72477]
[1746009123610,6.7672,1805.4,1805.3,2.72477]
[1746009123805,7.18826888,1805.4,1805.3,2.72477]
[1746009124207,7.18826888,1805.4,1805.3,6.55277]
[1746009124804,2.02616888,1805.4,1805.3,6.55277]
[1746009125118,0.42106888,1805.4,1805.3,7.35237]
[1746009126916,0.88459,1805.6,1805.5,1.10744]
[1746009127221,0.88459,1805.6,1805.5,4.93544]
[1746009127609,0.88459,1805.6,1805.5,6.60224]
[1746009128012,0.88459,1805.6,1805.5,7.43184]
[1746009130218,2.52139,1805.6,1805.5,7.43184]
[1746009134420,3.62877,1805.6,1805.5,7.43184]
[1746009135522,3.62877,1805.6,1805.5,6.60224]
[1746009135716,3.62877,1805.6,1805.5,3.828]
[1746009136019,11.83657,1805.6,1805.5,3.828]
[1746009136210,1.10757,1805.3,1805.2,1.10761]
[1746009136609,3.67955,1805.4,1805.3,1.10757]
[1746009137221,3.67955,1805.4,1805.3,4.93557]
[1746009137721,2.572,1805.4,1805.3,4.93557]
[1746009138316,2.572,1805.4,1805.3,6.54567]
[1746009140322,3.67951,1805.4,1805.3,6.54567]
[1746009141517,2.572,1805.4,1805.3,6.54567]
[1746009144520,3.502,1805.5,1805.4,1.10751]
[1746009144721,3.502,1805.5,1805.4,2.73711]
[1746009145027,4.43838,1805.6,1805.5,1.10744]
[1746009145227,4.43838,1805.6,1805.5,2.73704]
[1746009146229,4.43838,1805.6,1805.5,6.56504]
[1746009147225,4.43838,1805.6,1805.5,4.93544]
[1746009152533,3.33099,1805.6,1805.5,4.93544]
[1746009152734,3.33099,1805.6,1805.5,6.65474]
[1746009153227,0.88459,1805.6,1805.5,6.65474]
[1746009157644,1.99197,1805.6,1805.5,6.65474]
[1746009158046,0.88459,1805.6,1805.5,6.65474]
[1746009159347,3.60887,1805.6,1805.5,6.65474]
[1746009165655,0.88459,1805.6,1805.5,6.65474]
[1746009166652,1.10732,1805.8,1805.7,1.10727]
[1746009166853,3.56872,1805.8,1805.7,1.10727]
[1746009167256,3.56872,1805.8,1805.7,4.93527]
[1746009169255,2.4614,1805.8,1805.7,6.67297]
[1746009170256,3.495,1806.0,1805.9,1.1072]
[1746009170257,7.06957,1806.0,1805.9,1.1072]
[1746009170556,1.1072,1805.9,1805.8,2.84491]
[1746009171158,1.1072,1805.9,1805.8,6.67291]
[1746009172664,1.1072,1805.9,1805.8,4.93521]
[1746009173548,1.1072,1805.9,1805.8,3.828]
[1746009179165,1.10732,1805.8,1805.7,1.10731]
[1746009179354,1.10732,1805.7,1805.6,47.52923]
[1746009179556,1.94492,1805.7,1805.6,47.52923]
[1746009180660,1.94492,1805.7,1805.6,3.2078]
[1746009180859,1.94492,1805.7,1805.6,4.31518]
[1746009182366,1.94492,1805.7,1805.6,3.2078]
[1746009184764,1.10738,1805.6,1805.5,3.828]
[1746009185261,1.53748754,1805.6,1805.5,3.828]
[1746009185464,1.53744215,1805.6,1805.5,3.828]
[1746009186259,1.10744,1805.5,1805.4,45.11531]
[1746009186465,2.37760215,1805.5,1805.4,45.11531]
[1746009186666,2.37760215,1805.5,1805.4,4.31531]
[1746009186962,0.43006215,1805.5,1805.4,4.31531]
[1746009187163,0.43006215,1805.5,1805.4,9.79561]
[1746009187567,1.53750215,1805.5,1805.4,9.79561]
[1746009187965,0.43006215,1805.5,1805.4,9.79561]
[1746009188158,1.53750215,1805.5,1805.4,9.79561]
[1746009188357,0.43006215,1805.5,1805.4,9.79561]
[1746009189161,4.60235,1805.7,1805.6,1.10738]
[1746009189466,5.03226824,1805.7,1805.6,1.10738]
[1746009189962,5.03226824,1805.7,1805.6,6.01608]
[1746009190168,5.03226824,1805.7,1805.6,2.80828]
[1746009190557,5.03226824,1805.7,1805.6,4.55438]
[1746009191067,5.03226824,1805.7,1805.6,3.71768]
[1746009191864,5.03226824,1805.7,1805.6,2.85348]
[1746009192066,5.03226824,1805.7,1805.6,1.10738]
[1746009192863,5.03231832,1805.7,1805.6,1.10738]
[1746009193064,1.10738,1805.6,1805.5,3.828]
[1746009193261,1.10744,1805.5,1805.4,9.00746]
[1746009193566,1.53740832,1805.5,1805.4,9.00746]
[1746009193866,3.16910832,1805.5,1805.4,9.00746]
[1746009194862,3.16909121,1805.5,1805.4,9.00746]
[1746009195063,3.16909121,1805.5,1805.4,10.67896]
[1746009197061,3.16909121,1805.5,1805.4,3.828]
[1746009198265,1.10751,1805.4,1805.3,1.10756]
[1746009198563,3.11826121,1805.4,1805.3,1.10756]
[1746009198765,3.11826121,1805.4,1805.3,2.84026]
[1746009199172,3.11826121,1805.4,1805.3,6.66826]
[1746009199362,3.11826121,1805.4,1805.3,7.49806]
[1746009200867,0.42995121,1805.4,1805.3,7.49806]
[1746009201068,1.53746121,1805.4,1805.3,7.49806]
[1746009201566,0.42995121,1805.4,1805.3,7.49806]
[1746009202467,7.01167,1805.7,1805.6,1.10738]
[1746009202668,7.44114045,1805.7,1805.6,1.10738]
[1746009202868,0.42947045,1805.7,1805.6,1.10738]
[1746009203262,0.42947045,1805.7,1805.6,3.63948]
[1746009203567,1.5818,1806.0,1805.8,1.10721]
[1746009203770,1.53679997,1805.9,1805.8,1.10721]
[1746009204272,1.10724,1805.9,1805.8,4.93521]
[1746009204569,4.30698,1806.0,1805.9,1.1072]
[1746009204870,1.10718,1806.0,1805.9,1.9314]
[1746009205272,1.10718,1806.0,1805.9,5.7594]
[1746009206274,2.84448,1806.0,1805.9,5.7594]
[1746009208678,1.10718,1806.0,1805.9,5.7594]
[1746009214179,1.10718,1806.0,1805.9,46.5594]
[1746009214877,1.10718,1806.0,1805.9,45.4522]
[1746009215277,1.10718,1806.0,1805.9,46.5594]
[1746009215577,1.52948738,1806.0,1805.9,46.5594]
[1746009216470,1.10718,1806.0,1805.9,46.5594]
[1746009217478,1.52941392,1806.0,1805.9,3.828]
[1746009217674,4.37468,1806.0,1805.9,3.828]
[1746009218079,4.79695642,1806.0,1805.9,3.828]
[1746009218277,4.79694604,1806.0,1805.9,3.828]
[1746009218676,4.79692291,1806.0,1805.9,3.828]
[1746009218977,16.07748,1806.0,1805.9,3.828]
[1746009219179,1.10738,1805.6,1805.5,10.60458455]
[1746009219479,1.10738,1805.6,1805.5,7.39678455]
[1746009220181,1.10738,1805.6,1805.5,11.22478455]
[1746009220372,2.80098,1805.6,1805.5,12.33222455]
[1746009220573,2.80098,1805.6,1805.5,13.96302455]
[1746009220774,3.2231084,1805.6,1805.5,6.56624]
[1746009221076,3.22311811,1805.6,1805.5,6.56624]
[1746009222582,3.22311811,1805.6,1805.5,5.4588]
[1746009222976,3.22311811,1805.6,1805.5,3.828]
[1746009223783,3.22311811,1805.6,1805.5,4.93544]
[1746009224082,1.10738,1805.6,1805.5,5.4597]
[1746009224280,1.52951851,1805.6,1805.5,5.4597]
[1746009224482,1.52951851,1805.6,1805.5,9.77494]
[1746009224683,1.52951851,1805.6,1805.5,8.6675]
[1746009224684,1.52954568,1805.6,1805.5,8.6675]
[1746009226084,1.10738,1805.6,1805.5,8.6675]
[1746009226285,1.52958366,1805.6,1805.5,8.6675]
[1746009228177,3.25426469,1805.6,1805.5,8.6675]
[1746009228682,3.25426469,1805.6,1805.5,7.0358]
[1746009231185,2.83198,1805.6,1805.5,7.0358]
[1746009233486,3.25459156,1805.6,1805.5,8.7024]
[1746009234089,3.25459473,1805.6,1805.5,9.80984]
[1746009234588,3.25459473,1805.6,1805.5,8.7024]
[1746009235687,3.25459473,1805.6,1805.5,9.80984]
[1746009237377,3.25459473,1805.6,1805.5,8.7024]
[1746009238991,3.25459473,1805.6,1805.5,9.80984]
[1746009239291,3.25459473,1805.6,1805.5,8.7024]
[1746009239587,3.25474865,1805.6,1805.5,8.7024]
[1746009239886,3.25474865,1805.6,1805.5,9.80984]
[1746009240184,1.53014865,1805.6,1805.5,10.60344]
[1746009240389,1.10733,1805.8,1805.7,1.10729]
[1746009240590,1.530132,1805.8,1805.7,1.10729]
[1746009241088,1.53011948,1805.8,1805.7,6.57949]
[1746009241889,1.53011948,1805.8,1805.7,47.37949]
[1746009242690,1.53011948,1805.8,1805.7,50.58729]
[1746009242891,1.53021008,1805.8,1805.7,50.58729]
[1746009245395,1.10733,1805.8,1805.7,50.58729]
[1746009245695,1.53031286,1805.8,1805.7,50.58729]
[1746009246088,1.53031286,1805.8,1805.7,50.58732]
[1746009246294,1.53031286,1805.8,1805.7,49.48]
[1746009246594,1.53045363,1805.8,1805.7,50.58732]
[1746009247794,1.53045363,1805.8,1805.7,7.0358]
[1746009247996,1.53045363,1805.8,1805.7,3.828]
[1746009248398,1.53066718,1805.8,1805.7,3.828]
[1746009250002,5.02766718,1805.8,1805.7,3.828]
[1746009250302,5.0277213,1805.8,1805.7,3.828]
[1746009252310,5.02771386,1805.8,1805.7,3.828]
[1746009254307,8.23551386,1805.8,1805.7,3.828]
[1746009254509,13.23551386,1805.8,1805.7,0.93622067]
[1746009254707,13.23551386,1805.8,1805.7,6.7e-07]
[1746009255108,1.10757,1805.3,1805.2,4.8964]
[1746009255303,1.53095386,1805.3,1805.2,4.8964]
[1746009255809,1.53095386,1805.3,1805.2,1.6886]
[1746009256003,3.17555386,1805.3,1805.2,1.6886]
[1746009256204,3.17555386,1805.3,1805.2,5.5166]
[1746009261007,3.17555386,1805.3,1805.2,3.828]
[1746009263415,2.75217,1805.3,1805.2,3.828]
[1746009263616,3.17453943,1805.3,1805.2,3.828]
[1746009265313,2.75217,1805.3,1805.2,3.828]
[1746009265509,3.17440354,1805.3,1805.2,3.828]
[1746009266213,1.10769,1805.1,1805.0,5.96054]
[1746009266517,1.52984207,1805.1,1805.0,4.8528]
[1746009267211,4.11578961,1805.1,1805.0,8.6808]
[1746009268918,4.11580845,1805.1,1805.0,8.6808]
[1746009269519,4.11580845,1805.1,1805.0,9.78855]
[1746009270313,3.69369,1805.1,1805.0,9.78855]
[1746009270515,1.10769,1805.1,1805.0,9.78855]
[1746009274214,1.10767,1805.2,1805.1,1.10765]
[1746009274415,1.52997954,1805.2,1805.1,2.74725]
[1746009274920,1.52999221,1805.2,1805.1,2.74725]
[1746009275915,0.42232221,1805.2,1805.1,2.74725]
[1746009276717,1.10762,1805.3,1805.2,1.10763]
[1746009276925,1.53024796,1805.3,1805.2,4.32463]
[1746009277112,1.53024796,1805.3,1805.2,8.15263]
[1746009278625,1.53045098,1805.3,1805.2,8.15263]
[1746009279526,1.53055371,1805.3,1805.2,8.15263]
[1746009280423,1.10762,1805.3,1805.2,8.15263]
[1746009280627,1.53066459,1805.3,1805.2,8.15263]
[1746009281123,1.10762,1805.3,1805.2,8.15263]
[1746009281326,1.53076705,1805.3,1805.2,8.15263]
[1746009282430,1.53087645,1805.3,1805.2,8.15263]
[1746009283030,1.53087645,1805.3,1805.2,7.35863]
[1746009283232,3.15597645,1805.3,1805.2,7.35863]
[1746009283431,3.15597645,1805.3,1805.2,6.251]
[1746009283632,3.15597645,1805.3,1805.2,4.93563]
[1746009284631,3.15597645,1805.3,1805.2,3.828]
[1746009286734,3.15638998,1805.3,1805.2,3.828]
[1746009287636,3.15638835,1805.3,1805.2,3.828]
[1746009288234,3.1563978,1805.3,1805.2,3.828]
[1746009290029,3.15640561,1805.3,1805.2,3.828]
[1746009290631,2.73272,1805.3,1805.2,3.828]
[1746009290836,3.15640856,1805.3,1805.2,3.828]
[1746009291940,3.15641199,1805.3,1805.2,3.828]
[1746009293743,3.15641199,1805.3,1805.2,4.93563]
[1746009296343,1.53124209,1805.3,1805.2,11.40593]
[1746009296836,0.42362209,1805.3,1805.2,11.40593]
[1746009297743,1.10746,1805.5,1805.4,1.10751]
[1746009297944,1.53109761,1805.5,1805.4,1.10751]
[1746009298242,3.11319761,1805.5,1805.4,4.93551]
[1746009299545,3.11297843,1805.5,1805.4,4.93551]
[1746009301137,3.11300061,1805.5,1805.4,4.93551]
[1746009302040,3.11300061,1805.5,1805.4,6.63971]
[1746009302639,2.68956,1805.5,1805.4,6.63971]
[1746009302836,3.11284412,1805.5,1805.4,6.63971]
[1746009305748,1.53074412,1805.5,1805.4,6.63971]
[1746009307444,3.15844412,1805.5,1805.4,6.63971]
[1746009308046,7.05098412,1805.5,1805.0,10.60458455]
[1746009308343,1.10769,1805.1,1805.0,1.45741557]
[1746009308545,5.02452416,1805.1,1805.0,1.45741557]
[1746009308746,13.39632416,1805.1,1805.0,1.45741557]
[1746009311053,12.28863416,1805.1,1804.8,14.79356911]
[1746009311252,4.31561,1804.9,1804.8,14.79356911]
[1746009311552,1.10806,1804.5,1804.4,1.6623]
[1746009311955,1.10804,1804.6,1804.4,5.17121]
[1746009312147,2.77814,1804.6,1804.5,4.09929]
[1746009312453,3.20017508,1804.6,1804.5,4.09929]
[1746009313152,3.20017508,1804.6,1804.5,7.92729]
[1746009313952,3.20000063,1804.6,1804.5,7.92729]
[1746009317761,3.19937526,1804.6,1804.5,7.92729]
[1746009318258,2.77814,1804.6,1804.5,7.92729]
[1746009320261,2.77814,1804.6,1804.5,8.76569]
[1746009320461,1.10804,1804.6,1804.5,9.87375]
[1746009320655,1.10798,1804.7,1804.6,1.10799]
[1746009320955,1.10798,1804.7,1804.6,4.87109]
[1746009321156,1.10798,1804.7,1804.6,5.97909]
[1746009321948,1.10798,1804.7,1804.6,4.87109]
[1746009322153,1.10798,1804.7,1804.6,5.97909]
[1746009322454,1.10798,1804.7,1804.6,4.87109]
[1746009322952,1.10798,1804.7,1804.6,5.97909]
[1746009324366,1.1078,1805.0,1804.9,1.1078]
[1746009324561,1.1078,1805.0,1804.9,3.50859]
[1746009324956,1.1078,1805.0,1804.9,5.20059]
[1746009325156,1.1078,1805.0,1804.9,9.02859]
[1746009330775,1.1078,1805.0,1804.9,7.92079]
[1746009331269,1.1078,1805.0,1804.9,9.0286]
[1746009332269,1.52953449,1805.0,1804.9,9.0286]
[1746009332469,1.52953449,1805.0,1804.9,7.92079]
[1746009332669,3.17513449,1805.0,1804.9,9.0286]
[1746009332870,3.17513873,1805.0,1804.9,9.0286]
[1746009333071,2.7534,1805.0,1804.9,9.0286]
[1746009333270,3.17513585,1805.0,1804.9,9.0286]
[1746009333872,3.17526454,1805.0,1804.9,9.0286]
[1746009334673,3.17542696,1805.0,1804.9,9.0286]
[1746009335071,3.17542696,1805.0,1804.9,9.8371]
[1746009335267,1.52982696,1805.0,1804.9,9.8371]
[1746009338474,1.53039988,1805.0,1804.9,9.8371]
[1746009339676,1.53039988,1805.0,1804.9,13.0449]
[1746009340275,1.53035148,1805.0,1804.9,13.0449]
[1746009341275,1.1078,1805.0,1804.9,13.0449]
[1746009341481,1.53036978,1805.0,1804.9,13.0449]
[1746009342282,1.5303878,1805.0,1804.9,13.0449]
[1746009343477,0.4225878,1805.0,1804.9,13.0449]
[1746009343674,1.10768,1805.2,1805.1,1.10763]
[1746009343875,1.53031787,1805.2,1805.1,3.50842]
[1746009344077,3.23701787,1805.2,1805.1,4.89229]
[1746009344276,3.23705464,1805.2,1805.1,45.69229]
[1746009344782,3.23705464,1805.2,1805.1,43.20079]
[1746009345083,4.08325464,1805.2,1805.1,43.20079]
[1746009346186,4.08326706,1805.2,1805.1,43.20079]
[1746009347878,3.66058,1805.2,1805.1,43.20079]
[1746009348088,4.08342549,1805.2,1805.1,43.20079]
[1746009349482,4.08342549,1805.2,1805.1,40.8]
[1746009349675,4.08342549,1805.2,1805.1,43.20079]
[1746009349879,4.08366564,1805.2,1805.1,43.20079]
[1746009350488,4.08366564,1805.2,1805.1,40.8]
[1746009351085,2.76924,1805.1,1804.9,3.2078]
[1746009351391,2.34943564,1805.0,1804.9,3.2078]
[1746009351589,3.95903564,1805.0,1804.9,44.0078]
[1746009351887,3.95903564,1805.0,1804.9,46.40859]
[1746009352286,3.95903564,1805.0,1804.9,50.23659]
[1746009353291,3.95903564,1805.0,1804.9,47.02879]
[1746009353789,3.95943588,1805.0,1804.9,47.02879]
[1746009355489,3.95959463,1805.0,1804.9,47.02879]
[1746009357390,3.95960084,1805.0,1804.9,47.02879]
[1746009357690,3.95960084,1805.0,1804.9,48.1366]
[1746009357987,3.95960084,1805.0,1804.9,49.7694]
[1746009358589,3.95960084,1805.0,1804.9,48.66159]
[1746009359380,3.95960168,1805.0,1804.9,48.66159]
[1746009360691,3.95962824,1805.0,1804.9,48.66159]
[1746009360890,3.95962807,1805.0,1804.9,48.66159]
[1746009361388,3.95962807,1805.0,1804.9,6.22879]
[1746009363689,3.95962807,1805.0,1804.9,7.90409]
[1746009363989,3.95962807,1805.0,1804.9,9.0119]
[1746009364293,3.95955959,1805.0,1804.9,9.0119]
[1746009365186,3.95955959,1805.0,1804.9,7.90409]
[1746009368095,3.95955959,1805.0,1804.9,9.0119]
[1746009368096,3.95958188,1805.0,1804.9,9.0119]
[1746009369996,3.9595745,1805.0,1804.9,9.0119]
[1746009371901,3.95955899,1805.0,1804.9,9.0119]
[1746009372308,3.95953935,1805.0,1804.9,9.0119]
[1746009372801,3.95953935,1805.0,1804.9,9.8222]
[1746009373905,3.95954802,1805.0,1804.9,9.8222]
[1746009374203,3.95954802,1805.0,1804.9,3.828]
[1746009374704,3.95954802,1805.0,1804.9,7.3366]
[1746009375006,3.95954802,1805.0,1804.9,7.82839]
[1746009375598,3.53595,1805.0,1804.9,7.82839]
[1746009375800,3.95961702,1805.0,1804.9,8.9362]
[1746009376999,3.95961702,1805.0,1804.9,7.82839]
[1746009377505,3.95966473,1805.0,1804.9,7.82839]
[1746009378100,3.95950956,1805.0,1804.9,7.82839]
[1746009379407,3.53595,1805.0,1804.9,7.82839]
[1746009379608,3.95958395,1805.0,1804.9,7.82839]
[1746009381706,3.95958395,1805.0,1804.9,8.9362]
[1746009382005,1.53138395,1805.0,1804.9,8.9362]
[1746009385806,0.42363395,1805.0,1804.9,8.9362]
[1746009385998,9.22949469,1805.3,1805.2,1.10763]
[1746009386202,15.35391712,1805.7,1805.5,1.10744]
[1746009386402,12.93231712,1805.7,1805.5,6.71603]
[1746009386706,9.31649397,1805.6,1805.5,56.01603]
[1746009387108,9.31649397,1805.6,1805.5,61.43863]
[1746009387912,9.31649397,1805.6,1805.5,61.85549981]
[1746009388708,9.31649397,1805.6,1805.5,61.43863]
[1746009390212,9.31649397,1805.6,1805.5,67.34063]
[1746009391412,1.10716,1806.0,1805.7,1.10732]
[1746009391715,1.10716,1806.0,1805.9,3.50799]
[1746009392110,1.10716,1806.0,1805.9,6.6833]
[1746009396814,2.75692,1806.1,1806.0,1.10714]
[1746009397019,2.75692,1806.1,1806.0,4.31494]
[1746009397315,2.75692,1806.1,1806.0,9.89184]
[1746009399222,2.75692,1806.1,1806.0,3.828]
[1746009399611,2.75692,1806.1,1806.0,4.93514]
[1746009402612,2.75692,1806.1,1806.0,7.33593]
[1746009403116,2.75692,1806.1,1806.0,9.05443]
[1746009407719,2.75692,1806.1,1806.0,9.87093]
[1746009410218,1.93508,1806.3,1806.1,1.10708]
[1746009410521,1.95469,1806.4,1806.3,1.10695]
[1746009410720,1.95469,1806.4,1806.3,8.36614]
[1746009411422,1.95469,1806.4,1806.3,12.19414]
[1746009413212,1.95469,1806.4,1806.3,10.54354]
[1746009413416,1.95469,1806.4,1806.3,9.43659]
[1746009413815,1.95469,1806.4,1806.3,7.0358]
[1746009414224,2.37817955,1806.4,1806.3,7.0358]
[1746009414524,2.37817955,1806.4,1806.3,8.14275]
[1746009415232,2.37817955,1806.4,1806.3,3.828]
[1746009415723,2.37817955,1806.4,1806.3,4.93495]
[1746009416230,2.37817955,1806.4,1806.3,3.828]
[1746009417123,2.37912475,1806.4,1806.3,3.828]
[1746009417325,1.10695,1806.3,1806.2,1.10696]
[1746009417524,3.94978475,1806.3,1806.2,1.10696]
[1746009417727,3.94978475,1806.3,1806.2,3.50775]
[1746009418324,3.94978475,1806.3,1806.2,7.33575]
[1746009418925,3.94977893,1806.3,1806.2,7.33575]
[1746009419123,3.94977893,1806.3,1806.2,4.93502]
[1746009419425,3.94977893,1806.3,1806.2,3.828]
[1746009419724,8.94977893,1806.3,1806.2,3.828]
[1746009420120,1.10714,1806.0,1805.9,4.31499]
[1746009420322,1.53156893,1806.0,1805.9,4.315]
[1746009420623,1.53156893,1806.0,1805.9,6.71579]
[1746009420824,1.53156893,1806.0,1805.9,5.60859]
[1746009421020,3.97696893,1806.0,1805.9,3.2078]
[1746009421219,3.97696893,1806.0,1805.9,7.0358]
[1746009422025,3.97701278,1806.0,1805.9,7.0358]
[1746009424027,3.97696749,1806.0,1805.9,7.0358]
[1746009425828,3.97688591,1806.0,1805.9,7.0358]
[1746009427830,3.97681932,1806.0,1805.9,7.0358]
[1746009429445,0.42427932,1806.0,1805.9,10.54379]
[1746009429731,1.10711,1806.1,1806.0,1.10714]
[1746009429920,1.10706,1806.2,1806.1,1.10705]
[1746009430124,1.53117015,1806.2,1806.1,5.95855]
[1746009430321,1.53117015,1806.2,1806.1,8.35934]
[1746009431233,1.53117015,1806.2,1806.1,7.25229]
[1746009431420,1.53117015,1806.2,1806.1,8.35937]
[1746009432433,1.53117015,1806.2,1806.1,5.15157]
[1746009432932,1.53117015,1806.2,1806.1,4.04449]
[1746009433933,1.53117015,1806.2,1806.1,8.35937]
[1746009435325,1.53115724,1806.2,1806.1,8.35937]
[1746009435525,1.53115724,1806.2,1806.1,7.25229]
[1746009437133,1.53118107,1806.2,1806.1,7.25229]
[1746009437934,1.53118107,1806.2,1806.1,8.35937]
[1746009438332,1.53118107,1806.2,1806.1,7.25229]
[1746009442135,1.53118107,1806.2,1806.1,8.35937]
[1746009442935,1.53132363,1806.2,1806.1,7.25229]
[1746009443234,1.53132363,1806.2,1806.1,8.35937]
[1746009446037,0.42426363,1806.2,1806.1,8.35937]
[1746009446838,1.53128363,1806.2,1806.1,8.35937]
[1746009448534,1.5315377,1806.2,1806.1,8.35937]
[1746009451838,1.5315377,1806.2,1806.1,5.15157]
[1746009452140,1.5315377,1806.2,1806.1,8.35937]
[1746009455139,1.5315377,1806.2,1806.1,5.15157]
[1746009455341,1.5315377,1806.2,1806.1,8.35937]
[1746009458038,1.10687,1806.5,1806.4,1.10683]
[1746009458341,0.42481867,1806.5,1806.4,5.12769]
[1746009458645,0.42481867,1806.5,1806.4,48.32848]
[1746009459145,1.10678,1806.6,1806.5,1.10683]
[1746009459341,1.10678,1806.6,1806.5,5.14982]
[1746009459543,2.74378,1806.6,1806.5,5.14982]
[1746009461648,2.74378,1806.6,1806.5,4.04299]
[1746009461845,2.74378,1806.6,1806.5,5.14982]
[1746009463249,3.56358,1806.6,1806.5,5.14982]
[1746009464149,1.10683,1806.5,1806.4,45.11466]
[1746009464349,2.79483,1806.5,1806.4,44.0078]
[1746009464849,2.79483,1806.5,1806.4,45.11469]
[1746009465248,2.79483,1806.5,1806.4,48.94269]
[1746009465648,2.79483,1806.5,1806.4,47.8358]
[1746009466150,2.79483,1806.5,1806.4,7.0358]
[1746009467149,2.79483,1806.5,1806.4,3.2078]
[1746009468450,2.79483,1806.5,1806.4,4.31469]
[1746009468649,2.79483,1806.5,1806.4,3.2078]
[1746009468849,2.79483,1806.5,1806.4,4.31469]
[1746009469052,2.79483,1806.5,1806.4,3.2078]
[1746009469353,2.79483,1806.5,1806.4,7.0358]
[1746009471153,2.79483,1806.5,1806.4,8.14269]
[1746009471855,2.79483,1806.5,1806.4,7.0358]
[1746009472154,2.79483,1806.5,1806.4,8.14269]
[1746009473650,2.79483,1806.5,1806.4,7.0358]
[1746009473854,2.79483,1806.5,1806.4,8.14269]
[1746009474855,2.79483,1806.5,1806.4,10.71179]
[1746009475654,2.79483,1806.5,1806.4,13.11258]
[1746009476252,1.688,1806.5,1806.4,13.11258]
[1746009476456,1.10678,1806.6,1806.5,1.10683]
[1746009476666,1.10678,1806.6,1806.5,5.23102]
[1746009476953,2.58,1806.7,1806.5,5.23102]
[1746009476954,3.68674,1806.7,1806.6,1.10677]
[1746009477145,3.68674,1806.7,1806.6,5.23096]
[1746009478752,1.10668,1806.8,1806.7,1.10671]
[1746009478953,1.10668,1806.8,1806.7,9.3076]
[1746009479756,2.84018,1806.8,1806.7,9.3076]
[1746009481354,1.96432,1806.9,1806.8,1.10665]
[1746009481657,2.76618,1807.1,1806.8,1.10665]
[1746009481658,1.7335,1807.0,1806.9,1.10659]
[1746009481853,0.8577,1807.2,1807.0,2.40079]
[1746009482052,0.8577,1807.2,1807.1,9.20045]
[1746009482257,1.9641,1807.2,1807.1,50.00045]
[1746009482457,1.9641,1807.2,1807.1,45.96626]
[1746009482657,1.9641,1807.2,1807.1,44.8598]
[1746009483158,1.9641,1807.2,1807.1,45.96626]
[1746009483361,1.9641,1807.2,1807.1,47.69496]
[1746009483951,1.9641,1807.2,1807.1,50.09575]
[1746009486960,1.7335,1807.3,1807.2,1.1064]
[1746009486961,2.8399,1807.3,1807.2,1.1064]
[1746009487160,6.6679,1807.3,1807.2,5.14509]
[1746009488161,6.6679,1807.3,1807.2,4.03869]
[1746009488961,6.6679,1807.3,1807.2,5.14509]
[1746009490056,4.93434,1807.3,1807.2,5.14509]
[1746009492067,4.93434,1807.3,1807.2,4.03869]
[1746009492460,4.93434,1807.3,1807.2,5.14509]
[1746009493166,4.93434,1807.3,1807.2,4.03869]
[1746009493366,4.93434,1807.3,1807.2,2.40079]
[1746009493959,4.93434,1807.3,1807.2,3.50719]
[1746009494262,4.93434,1807.3,1807.2,2.40079]
[1746009494768,1.1064,1807.2,1807.1,47.56193]
[1746009495266,4.9344,1807.2,1807.1,47.56193]
[1746009495467,4.9344,1807.2,1807.1,49.96272]
[1746009496966,4.9344,1807.2,1807.1,48.85629]
[1746009497170,5.7728,1807.2,1807.1,48.85629]
[1746009497369,6.6314,1807.2,1807.1,49.96275]
[1746009497865,8.3688,1807.2,1807.1,49.96275]
[1746009498964,8.3688,1807.2,1807.1,48.85629]
[1746009499167,4.5408,1807.2,1807.1,48.85629]
[1746009499471,4.5408,1807.2,1807.1,49.96275]
[1746009499968,4.5408,1807.2,1807.1,48.85629]
[1746009500970,4.5408,1807.2,1807.1,49.96275]
[1746009501362,4.5408,1807.2,1807.1,48.85629]
[1746009501666,4.5408,1807.2,1807.1,49.96275]
[1746009501966,4.5408,1807.2,1807.1,48.85629]
[1746009502967,4.5408,1807.2,1807.1,49.96275]
[1746009504469,4.5408,1807.2,1807.1,48.85629]
[1746009504669,4.5408,1807.2,1807.1,46.40859]
[1746009509076,4.5408,1807.2,1807.1,43.20079]
[1746009509282,4.5408,1807.2,1807.1,46.40859]
[1746009509582,4.5408,1807.2,1807.1,43.20079]
[1746009509880,4.5408,1807.2,1807.1,46.40859]
[1746009513080,4.5408,1807.2,1807.1,43.20079]
[1746009513279,4.5408,1807.2,1807.1,46.40859]
[1746009516186,4.5408,1807.2,1807.1,48.09609]
[1746009518488,4.97112463,1807.2,1807.1,48.09609]
[1746009519483,4.97112463,1807.2,1807.1,44.0078]
[1746009519685,4.97112463,1807.2,1807.1,3.2078]
[1746009520182,8.79912463,1807.2,1807.1,44.0078]
[1746009521487,8.79912463,1807.2,1807.1,40.8]
[1746009521690,1.10653,1807.0,1806.9,3.66285]
[1746009521987,1.53688435,1807.0,1806.9,6.87065]
[1746009522187,1.53688435,1807.0,1806.9,50.07144]
[1746009523686,1.53693813,1807.0,1806.9,50.07144]